fUSD/lending_fUSD_20250526
["ID","MTS","AMOUNT","RATE_DAILY","PERIOD"]
[362438448,1748291446710,-420.0,0.00032876,2]
[362438449,1748291446720,-420.92180084,0.00032876,2]
[362438450,1748291446729,-420.0,0.00032876,2]
[362438451,1748291446738,-420.0,0.00032876,2]
[362438452,1748291446748,-500.0,0.00032876,2]
[362438453,1748291446757,-420.0,0.00032876,2]
[362438454,1748291446767,-420.0,0.00032876,2]
[362438455,1748291446776,-427.14480062,0.00032876,2]
[362438456,1748291446785,-420.0,0.00032876,2]
[362438457,1748291446795,-420.0,0.00032876,2]
[362438458,1748291446804,-420.0,0.00032876,2]
[362438459,1748291446814,-420.0,0.00032876,2]
[362438460,1748291446823,-420.0,0.00032876,2]
[362438461,1748291446832,-420.0,0.00032876,2]
[362438462,1748291446842,-420.0,0.00032876,2]
[362438463,1748291446851,-420.0,0.00032876,2]
[362438464,1748291446860,-335.90914691,0.00032876,120]
[362438465,1748291446870,-420.0,0.00032876,2]
[362438466,1748291446879,-420.61437418,0.00032876,2]
[362438467,1748291446888,-420.0,0.00032876,2]
[362438469,1748291446898,-420.0,0.00032876,2]
[362438470,1748291446908,-202.0636045,0.00032876,2]
[362438471,1748291446936,-217.9363955,0.00032876,2]
[362438472,1748291446946,-420.0,0.00032876,2]
[362438473,1748291446957,-420.0,0.00032876,2]
[362438474,1748291446968,-420.0,0.00032876,2]
[362438475,1748291446977,-420.0,0.00032876,2]
[362438476,1748291446986,-423.67501387,0.00032876,2]
[362438477,1748291446996,-420.0,0.00032876,2]
[362438478,1748291447007,-420.0,0.00032876,2]
[362438479,1748291447016,-511.96197815,0.00032876,2]
[362438480,1748291447026,-197.57548911,0.00032876,2]
[362438481,1748291447035,-427.031734,0.00032876,2]
[362438482,1748291447044,-420.0,0.00032876,2]
[362438483,1748291447053,-420.0,0.00032876,2]
[362438484,1748291447062,-420.0,0.00032876,2]
[362438485,1748291447071,-420.0,0.00032876,2]
[362438486,1748291447082,-420.0,0.00032876,2]
[362438487,1748291447091,-420.0,0.00032876,2]
[362438488,1748291447102,-420.0,0.00032876,2]
[362438489,1748291447114,-420.0,0.00032876,2]
[362438490,1748291447124,-420.0,0.00032876,2]
[362438491,1748291447134,-420.0,0.00032876,2]
[362438492,1748291447146,-420.0,0.00032876,2]
[362438493,1748291447156,-441.21133839,0.00032876,2]
[362438494,1748291447168,-247.72272776,0.00032876,2]
[362438495,1748291447244,-172.27727224,0.00032876,2]
[362438496,1748291447254,-422.45230649,0.00032876,2]
[362438497,1748291447266,-420.0,0.00032876,2]
[362438498,1748291447277,-411.66824969,0.00032876,2]
[362438499,1748291447630,-8.33175031,0.00032876,2]
[362438500,1748291447645,-250.0,0.00032876,2]
[362438501,1748291447656,-420.0,0.00032876,2]
[362438502,1748291447666,-420.0,0.00032876,2]
[362438503,1748291447677,-420.0,0.00032876,2]
[362438504,1748291447688,-420.0,0.00032876,2]
[362438505,1748291447697,-420.0,0.00032876,2]
[362438506,1748291447707,-420.0,0.00032876,2]
[362438507,1748291447718,-420.0,0.00032876,2]
[362438508,1748291447727,-420.0,0.00032876,2]
[362438509,1748291447737,-420.0,0.00032876,2]
[362438510,1748291447746,-420.0,0.00032876,2]
[362438511,1748291447756,-421.10912616,0.00032876,2]
[362438512,1748291447766,-420.0,0.00032876,2]
[362438513,1748291447776,-420.0,0.00032876,2]
[362438514,1748291447786,-420.0,0.00032876,2]
[362438515,1748291447795,-420.0,0.00032876,2]
[362438516,1748291447805,-420.0,0.00032876,2]
[362438517,1748291447815,-425.29814616,0.00032876,2]
[362438518,1748291447824,-420.0,0.00032876,2]
[362438519,1748291447834,-420.0,0.00032876,2]
[362438520,1748291447843,-420.0,0.00032876,2]
[362438521,1748291447853,-420.0,0.00032876,2]
[362438522,1748291447863,-420.0,0.00032876,2]
[362438523,1748291447873,-425.51951914,0.00032876,2]
[362438524,1748291447883,-507.8,0.00032876,2]
[362438525,1748291447893,-420.0,0.00032876,2]
[362438526,1748291447903,-420.0,0.00032876,2]
[362438527,1748291447913,-420.0,0.00032876,2]
[362438528,1748291447923,-420.0,0.00032876,2]
[362438529,1748291447933,-420.0,0.00032876,2]
[362438530,1748291447942,-420.0,0.00032876,2]
[362438531,1748291447952,-420.0,0.00032876,2]
[362438532,1748291447962,-420.0,0.00032876,2]
[362438533,1748291447971,-420.0,0.00032876,2]
[362438534,1748291447981,-420.0,0.00032876,2]
[362438535,1748291447990,-420.0,0.00032876,2]
[362438536,1748291448000,-420.0,0.00032876,2]
[362438537,1748291448010,-420.0,0.00032876,2]
[362438538,1748291448019,-420.0,0.00032876,2]
[362438539,1748291448028,-420.0,0.00032876,2]
[362438540,1748291448038,-420.0,0.00032876,2]
[362438541,1748291448048,-423.25071394,0.00032876,2]
[362438542,1748291448058,-420.0,0.00032876,2]
[362438543,1748291448067,-420.0,0.00032876,2]
[362438544,1748291448077,-420.0,0.00032876,2]
[362438545,1748291448087,-420.0,0.00032876,2]
[362438546,1748291448096,-196.01401605,0.00032876,2]
[362438547,1748291448105,-420.0,0.00032876,2]
[362438548,1748291448115,-420.0,0.00032876,2]
[362438549,1748291448125,-420.0,0.00032876,2]
[362438550,1748291448135,-420.0,0.00032876,2]
[362438551,1748291448144,-420.0,0.00032876,2]
[362438552,1748291448154,-420.0,0.00032876,2]
[362438553,1748291448164,-420.0,0.00032876,2]
[362438554,1748291448173,-420.0,0.00032876,2]
[362438555,1748291448183,-420.0,0.00032876,2]
[362438556,1748291448193,-420.0,0.00032876,2]
[362438557,1748291448203,-525.19,0.00032876,2]
[362438558,1748291448213,-420.0,0.00032876,2]
[362438559,1748291448222,-420.0,0.00032876,2]
[362438560,1748291448231,-432.08245841,0.00032876,2]
[362438561,1748291448241,-420.0,0.00032876,2]
[362438562,1748291448251,-420.0,0.00032876,2]
[362438563,1748291448260,-420.0,0.00032876,2]
[362438564,1748291448270,-420.0,0.00032876,2]
[362438565,1748291448280,-420.0,0.00032876,2]
[362438566,1748291448290,-420.0,0.00032876,2]
[362438567,1748291448299,-420.0,0.00032876,2]
[362438568,1748291448309,-394.72143708,0.00032876,2]
[362438569,1748291448319,-424.25024207,0.00032876,2]
[362438570,1748291448329,-425.04476514,0.00032876,2]
[362438571,1748291448338,-420.0,0.00032876,2]
[362438572,1748291448348,-420.0,0.00032876,2]
[362438573,1748291448358,-420.0,0.00032876,2]
[362438574,1748291448368,-420.0,0.00032876,2]
[362438575,1748291448378,-420.0,0.00032876,2]
[362438576,1748291448388,-420.0,0.00032876,2]
[362438577,1748291448398,-420.0,0.00032876,2]
[362438578,1748291448408,-296.8100599,0.00032876,2]
[362438579,1748291448418,-234.93,0.00032876,2]
[362438580,1748291448428,-420.0,0.00032876,2]
[362438581,1748291448438,-400.0,0.00032876,2]
[362438582,1748291448448,-420.0,0.00032876,2]
[362438583,1748291448458,-431.18744684,0.00032876,2]
[362438584,1748291448467,-420.0,0.00032876,2]
[362438585,1748291448477,-420.0,0.00032876,2]
[362438586,1748291448487,-420.0,0.00032876,2]
[362438587,1748291448498,-420.0,0.00032876,2]
[362438588,1748291448508,-420.0,0.00032876,2]
[362438589,1748291448518,-420.0,0.00032876,2]
[362438590,1748291448527,-420.0,0.00032876,2]
[362438591,1748291448538,-420.0,0.00032876,2]
[362438592,1748291448548,-420.0,0.00032876,2]
[362438593,1748291448558,-420.0,0.00032876,2]
[362438594,1748291448567,-420.0,0.00032876,2]
[362438595,1748291448577,-423.07083082,0.00032876,2]
[362438596,1748291448588,-428.17851849,0.00032876,2]
[362438597,1748291448597,-420.0,0.00032876,2]
[362438598,1748291448860,-25.34261467,0.00032876,2]
[362438599,1748291449312,-394.65738533,0.00032876,2]
[362438600,1748291449324,-421.93829619,0.00032876,2]
[362438601,1748291449333,-420.0,0.00032876,2]
[362438602,1748291449342,-420.0,0.00032876,2]
[362438603,1748291449352,-420.0,0.00032876,2]
[362438604,1748291449362,-420.0,0.00032876,2]
[362438605,1748291449371,-412.51805773,0.00032876,2]
[362438606,1748291449382,-420.0,0.00032876,2]
[362438607,1748291449392,-420.0,0.00032876,2]
[362438608,1748291449402,-420.0,0.00032876,2]
[362438609,1748291449412,-420.0,0.00032876,2]
[362438610,1748291449422,-469.94,0.00032876,2]
[362438611,1748291449432,-420.0,0.00032876,2]
[362438612,1748291449442,-420.0,0.00032876,2]
[362438613,1748291449452,-420.0,0.00032876,2]
[362438614,1748291449461,-420.0,0.00032876,2]
[362438615,1748291449472,-420.0,0.00032876,2]
[362438616,1748291449482,-420.0,0.00032876,2]
[362438617,1748291449492,-420.0,0.00032876,2]
[362438618,1748291449502,-420.0,0.00032876,2]
[362438619,1748291449512,-420.0,0.00032876,2]
[362438620,1748291449523,-380.0,0.00032876,2]
[362438621,1748291449534,-420.0,0.00032876,2]
[362438622,1748291449544,-420.0,0.00032876,2]
[362438623,1748291449555,-420.0,0.00032876,2]
[362438624,1748291449565,-424.68129482,0.00032876,2]
[362438625,1748291449575,-420.0,0.00032876,2]
[362438626,1748291449587,-425.39430656,0.00032876,2]
[362438627,1748291449597,-211.8916135,0.00032876,2]
[362438628,1748291449606,-420.0,0.00032876,2]
[362438629,1748291449616,-420.0,0.00032876,2]
[362438630,1748291449626,-420.0,0.00032876,2]
[362438631,1748291449638,-420.0,0.00032876,2]
[362438632,1748291449647,-353.367981,0.00032876,2]
[362438633,1748291449658,-420.0,0.00032876,2]
[362438634,1748291449669,-420.0,0.00032876,2]
[362438635,1748291449679,-420.0,0.00032876,2]
[362438636,1748291449689,-420.0,0.00032876,2]
[362438637,1748291449700,-5066.14947579,0.00032876,2]
[362438638,1748291449710,-420.0,0.00032876,2]
[362438639,1748291449723,-420.0,0.00032876,2]
[362438640,1748291449732,-420.0,0.00032876,2]
[362438641,1748291449743,-420.0,0.00032876,2]
[362438642,1748291449754,-420.0,0.00032876,2]
[362438643,1748291449763,-166.972791,0.00032876,2]
[362438644,1748291449773,-420.0,0.00032876,2]
[362438645,1748291449783,-420.0,0.00032876,2]
[362438646,1748291449793,-420.0,0.00032876,2]
[362438647,1748291449803,-420.0,0.00032876,2]
[362438648,1748291449813,-420.0,0.00032876,2]
[362438649,1748291449824,-420.0,0.00032876,2]
[362438650,1748291449834,-420.0,0.00032876,2]
[362438651,1748291449843,-420.0,0.00032876,2]
[362438652,1748291449853,-420.0,0.00032876,2]
[362438653,1748291449863,-420.0,0.00032876,2]
[362438654,1748291449872,-422.18093693,0.00032876,2]
[362438655,1748291449882,-425.95429913,0.00032876,2]
[362438656,1748291449891,-420.0,0.00032876,2]
[362438657,1748291449901,-420.0,0.00032876,2]
[362438658,1748291449910,-420.0,0.00032876,2]
[362438659,1748291449920,-420.0,0.00032876,2]
[362438660,1748291449930,-420.0,0.00032876,2]
[362438661,1748291449939,-420.0,0.00032876,2]
[362438662,1748291449948,-420.0,0.00032876,2]
[362438663,1748291449958,-420.0,0.00032876,2]
[362438664,1748291449967,-420.0,0.00032876,2]
[362438665,1748291449977,-420.0,0.00032876,2]
[362438666,1748291449986,-164.526388,0.00032876,2]
[362438667,1748291449995,-420.0,0.00032876,2]
[362438668,1748291450004,-564.37374616,0.00032876,2]
[362438669,1748291450014,-420.0,0.00032876,2]
[362438670,1748291450023,-420.0,0.00032876,2]
[362438671,1748291450032,-420.0,0.00032876,2]
[362438672,1748291450042,-420.0,0.00032876,2]
[362438673,1748291450051,-420.0,0.00032876,2]
[362438674,1748291450062,-420.0,0.00032876,2]
[362438675,1748291450073,-2055.763641,0.00032876,2]
[362438676,1748291450084,-420.62222374,0.00032876,2]
[362438677,1748291450095,-420.0,0.00032876,2]
[362438678,1748291450107,-420.0,0.00032876,2]
[362438679,1748291450116,-420.0,0.00032876,2]
[362438680,1748291450126,-420.0,0.00032876,2]
[362438681,1748291450136,-420.0,0.00032876,2]
[362438682,1748291450147,-420.0,0.00032876,2]
[362438683,1748291450157,-420.0,0.00032876,2]
[362438684,1748291450168,-422.14506003,0.00032876,2]
[362438685,1748291450178,-420.0,0.00032876,2]
[362438686,1748291450188,-420.0,0.00032876,2]
[362438687,1748291450199,-516.50509115,0.00032876,2]
[362438688,1748291450209,-420.0,0.00032876,2]
[362438689,1748291450220,-155.922147,0.00032876,7]
[362438690,1748291450232,-329.47732631,0.00032876,2]
[362438691,1748291450242,-155.922147,0.00032876,7]
[362438692,1748291450252,-420.0,0.00032876,2]
[362438693,1748291450262,-420.0,0.00032876,2]
[362438694,1748291450273,-420.0,0.00032876,2]
[362438695,1748291450285,-432.54229215,0.00032876,2]
[362438696,1748291450295,-420.0,0.00032876,2]
[362438697,1748291450305,-155.922147,0.00032876,7]
[362438698,1748291450315,-420.0,0.00032876,2]
[362438699,1748291450327,-155.922141,0.00032876,7]
[362438700,1748291450338,-420.0,0.00032876,2]
[362438701,1748291450349,-425.78076447,0.00032876,2]
[362438702,1748291450359,-420.0,0.00032876,2]
[362438703,1748291450370,-420.0,0.00032876,2]
[362438704,1748291450380,-420.0,0.00032876,2]
[362438705,1748291450390,-420.0,0.00032876,2]
[362438706,1748291450401,-154.385502,0.00032876,2]
[362438707,1748291450413,-420.0,0.00032876,2]
[362438708,1748291450423,-500.0,0.00032876,2]
[362438709,1748291450433,-422.78197308,0.00032876,2]
[362438710,1748291450442,-420.0,0.00032876,2]
[362438711,1748291450452,-420.0,0.00032876,2]
[362438712,1748291450461,-420.0,0.00032876,2]
[362438713,1748291450470,-420.0,0.00032876,2]
[362438714,1748291450479,-425.47902198,0.00032876,2]
[362438715,1748291450489,-420.0,0.00032876,2]
[362438716,1748291450498,-420.0,0.00032876,2]
[362438717,1748291450508,-420.0,0.00032876,2]
[362438718,1748291450517,-420.0,0.00032876,2]
[362438719,1748291450526,-420.0,0.00032876,2]
[362438720,1748291450536,-420.0,0.00032876,2]
[362438721,1748291450545,-420.0,0.00032876,2]
[362438722,1748291450554,-177.604047,0.00032876,2]
[362438723,1748291450748,-420.0,0.00032876,2]
[362438724,1748291450760,-420.0,0.00032876,2]
[362438725,1748291450770,-429.55805494,0.00032876,2]
[362438726,1748291450780,-420.0,0.00032876,2]
[362438727,1748291450789,-420.0,0.00032876,2]
[362438728,1748291450799,-420.0,0.00032876,2]
[362438729,1748291450809,-420.0,0.00032876,2]
[362438730,1748291450818,-420.0,0.00032876,2]
[362438731,1748291450827,-400.0,0.00032876,2]
[362438732,1748291450836,-423.66635723,0.00032876,2]
[362438733,1748291450845,-420.0,0.00032876,2]
[362438734,1748291450855,-426.26885818,0.00032876,2]
[362438735,1748291450864,-425.79576725,0.00032876,2]
[362438736,1748291450873,-420.0,0.00032876,2]
[362438737,1748291450882,-420.0,0.00032876,2]
[362438738,1748291450891,-420.0,0.00032876,2]
[362438739,1748291450900,-420.0,0.00032876,2]
[362438740,1748291450910,-311.84460324,0.00032876,2]
[362438741,1748291450932,-108.15539676,0.00032876,2]
[362438742,1748291450941,-420.0,0.00032876,2]
[362438743,1748291450950,-420.0,0.00032876,2]
[362438744,1748291450960,-420.0,0.00032876,2]
[362438745,1748291450970,-420.0,0.00032876,2]
[362438746,1748291450979,-420.0,0.00032876,2]
[362438747,1748291450988,-405.01956586,0.00032876,2]
[362438748,1748291451000,-23.58462374,0.00032876,2]
[362438749,1748291451009,-420.0,0.00032876,2]
[362438750,1748291451018,-425.96847259,0.00032876,2]
[362438751,1748291451027,-420.0,0.00032876,2]
[362438752,1748291451036,-420.0,0.00032876,2]
[362438753,1748291451045,-420.0,0.00032876,2]
[362438754,1748291451054,-424.13439585,0.00032876,2]
[362438755,1748291451063,-420.0,0.00032876,2]
[362438756,1748291451072,-420.0,0.00032876,2]
[362438757,1748291451081,-420.0,0.00032876,2]
[362438758,1748291451091,-420.0,0.00032876,2]
[362438759,1748291451100,-420.0,0.00032876,2]
[362438760,1748291451109,-420.0,0.00032876,2]
[362438761,1748291451118,-420.0,0.00032876,2]
[362438762,1748291451127,-185.94467772,0.00032876,2]
[362438763,1748291451136,-420.0,0.00032876,2]
[362438764,1748291451146,-420.0,0.00032876,2]
[362438765,1748291451157,-515.99614019,0.00032876,2]
[362438766,1748291451166,-420.0,0.00032876,2]
[362438767,1748291451176,-420.0,0.00032876,2]
[362438768,1748291451187,-423.32871882,0.00032876,2]
[362438769,1748291451196,-420.0,0.00032876,2]
[362438770,1748291451206,-420.0,0.00032876,2]
[362438771,1748291451217,-420.0,0.00032876,2]
[362438772,1748291451227,-420.0,0.00032876,2]
[362438773,1748291451237,-2562.44,0.00032876,2]
[362438774,1748291451247,-420.0,0.00032876,2]
[362438775,1748291451259,-422.67007718,0.00032876,2]
[362438776,1748291451268,-420.0,0.00032876,2]
[362438777,1748291451277,-420.0,0.00032876,2]
[362438778,1748291451287,-420.0,0.00032876,2]
[362438779,1748291451296,-420.0,0.00032876,2]
[362438780,1748291451307,-1000.0,0.00032876,2]
[362438781,1748291451319,-426.96387985,0.00032876,2]
[362438782,1748291451329,-420.0,0.00032876,2]
[362438783,1748291451339,-420.0,0.00032876,2]
[362438784,1748291451350,-420.0,0.00032876,2]
[362438785,1748291451360,-420.0,0.00032876,2]
[362438786,1748291451371,-420.0,0.00032876,2]
[362438787,1748291451380,-420.0,0.00032876,2]
[362438788,1748291451389,-432.04476133,0.00032876,2]
[362438789,1748291451399,-420.0,0.00032876,2]
[362438790,1748291451410,-420.0,0.00032876,2]
[362438791,1748291451419,-155.60355565,0.00032876,2]
[362438792,1748291451429,-2459.05,0.00032876,2]
[362438793,1748291451439,-213.15314415,0.00032876,2]
[362438794,1748291451454,-424.08510326,0.00032876,2]
[362438795,1748291451463,-420.0,0.00032876,2]
[362438796,1748291451473,-2683.66,0.00032876,2]
[362438797,1748291451483,-420.0,0.00032876,2]
[362438798,1748291451492,-308.49744968,0.00032876,2]
[362438799,1748291451510,-111.50255032,0.00032876,2]
[362438800,1748291451519,-420.0,0.00032876,2]
[362438801,1748291451532,-105.51744968,0.00032876,2]
[362438815,1748292559053,154.1,0.00013699,2]
[362438820,1748292632279,-305.09,0.00019999,2]
[362438821,1748292632290,-305.09,0.00021369,2]
[362438822,1748292632301,-305.09,0.00022739,2]
[362438823,1748292632310,-305.09,0.00024109,2]
[362438824,1748292632320,-305.09,0.00025479,2]
[362438825,1748292632331,-60.49088285,0.00026849,2]
[362438826,1748292632390,-244.59911715,0.00026849,2]
[362438827,1748292632400,-500.0,0.00027178,2]
[362438828,1748292632409,-305.09,0.00028218,2]
[362438829,1748292632418,-500.0,0.0002874,2]
[362438830,1748292632427,-305.09,0.00029588,2]
[362438831,1748292632438,-357.72,0.00029827,2]
[362438832,1748292632448,-154.01,0.00029827,2]
[362438833,1748292632458,-305.09,0.00030958,2]
[362438834,1748292632469,-151.77,0.00031151,2]
[362438835,1748292632478,-2001.0,0.00031208,120]
[362438836,1748292632489,-1200.0,0.00031299,3]
[362438837,1748292632499,-775.0,0.000313,2]
[362438838,1748292632508,-237.0,0.000313,2]
[362438839,1748292632519,-375.0,0.000313,2]
[362438840,1748292632528,-1000.0,0.00031304,2]
[362438841,1748292632538,-206.0,0.00031487,2]
[362438842,1748292632547,-250.0,0.00031827,2]
[362438843,1748292632557,-151.6,0.00031883,2]
[362438844,1748292632567,-565.879007,0.00031889,12]
[362438845,1748292632576,-210.36569219,0.000319,25]
[362438846,1748292632586,-460.2,0.00032055,2]
[362438847,1748292632596,-161.71350304,0.00032055,2]
[362438848,1748292632608,-8.54649696,0.00032055,2]
[362438849,1748292632617,-170.26,0.00032055,2]
[362438850,1748292632627,-170.26,0.00032055,2]
[362438851,1748292632637,-170.26,0.00032055,2]
[362438852,1748292632646,-75.08861164,0.00032055,2]
[362438853,1748292632658,-95.17138836,0.00032055,2]
[362438854,1748292632668,-170.26,0.00032055,2]
[362438856,1748292632677,-170.26,0.00032055,2]
[362438858,1748292632687,-170.26,0.00032055,2]
[362438860,1748292632696,-170.26,0.00032055,2]
[362438862,1748292632706,-120.68300767,0.00032055,2]
[362438868,1748292632751,-49.57699233,0.00032055,2]
[362438870,1748292632760,-170.26,0.00032055,2]
[362438872,1748292632770,-357.72,0.00032091,2]
[362438874,1748292632780,-166.02,0.00032154,2]
[362438877,1748292632789,-156.63525172,0.00032219,30]
[362438880,1748292632798,-406.87165461,0.000323,2]
[362438896,1748292632889,-957.12834539,0.000323,2]
[362438898,1748292632899,-305.09,0.00032328,2]
[362438900,1748292632908,-156.63525172,0.00032356,30]
[362438902,1748292632917,-997.00650205,0.000325,2]
[362439245,1748292638703,-75.74500364,0.000325,2]
[362439246,1748292638715,-156.63525172,0.00032521,30]
[362439247,1748292638726,-33.35974464,0.00032662,4]
[362439248,1748292638746,-512.75567453,0.00032662,4]
[362439249,1748292638755,-156.63525172,0.00032685,30]
[362439250,1748292638768,-207.4,0.00032746,2]
[362439251,1748292638778,-2500.0,0.00032756,2]
[362439252,1748292638790,-521.76801057,0.00032756,2]
[362439253,1748292638799,-275.73179816,0.00032756,15]
[362439254,1748292638809,-1000.0,0.00032766,2]
[362439255,1748292638819,-5000.0,0.00032766,2]
[362439256,1748292638829,-181.38295405,0.00032772,4]
[362439257,1748292638838,-150.06992563,0.00032772,6]
[362439258,1748292638849,-163.75269402,0.00032776,4]
[362439259,1748292638858,-150.06992563,0.00032776,6]
[362439260,1748292638868,-161.8080691,0.00032776,2]
[362439261,1748292638878,-521.76801049,0.00032819,2]
[362439262,1748292638887,-500.0,0.00032845,2]
[362439263,1748292638899,-500.0,0.00032845,2]
[362439264,1748292638911,-500.0,0.00032845,2]
[362439265,1748292638923,-500.0,0.00032845,2]
[362439266,1748292638933,-500.0,0.00032845,2]
[362439267,1748292638943,-500.0,0.00032845,2]
[362439268,1748292638954,-538.6260786,0.00032845,2]
[362439269,1748292638965,-72050.7011849,0.00032846,2]
[362439270,1748292638976,-1795.29,0.00032846,2]
[362439271,1748292638986,-16953.1061612,0.00032848,2]
[362439272,1748292638997,-156.63525172,0.00032849,30]
[362439273,1748292639007,-1290.619,0.00032855,33]
[362439274,1748292639016,-75997.55291953,0.00032856,2]
[362439275,1748292639089,-462.22393206,0.00032856,2]
[362439277,1748292640450,-5980.08222839,0.00032856,2]
[362439278,1748292640505,-1016.25349677,0.00032856,2]
[362439279,1748292640929,-791.44,0.00032856,2]
[362439282,1748292640941,-55615.57325325,0.00032856,2]
[362439284,1748292640951,-176807.380531,0.00032856,2]
[362439285,1748292640960,-1795.29,0.00032856,2]
[362439286,1748292640969,-151.0,0.00032856,2]
[362439287,1748292640978,-500.0,0.00032862,7]
[362439288,1748292640988,-151.73796112,0.00032865,2]
[362439289,1748292640997,-500.0,0.00032865,2]
[362439290,1748292641007,-240.05914413,0.00032865,2]
[362439291,1748292641016,-196485.66245335,0.00032866,2]
[362439330,1748292646350,-856.194824,0.00032866,2]
[362439331,1748292646407,-1864.12420033,0.00032866,2]
[362439332,1748292646570,-926.67566537,0.00032866,2]
[362439353,1748293167677,250.0,0.00015,2]
[362439363,1748293627887,152.64,0.00013699,2]
[362439375,1748293831493,-1200.0,0.00019999,2]
[362439376,1748293831504,-334.61538462,0.0002,4]
[362439378,1748293831515,-265.38461538,0.0002,7]
[362439379,1748293831526,-341.17647059,0.0002,4]
[362439380,1748293831556,-258.82352941,0.0002,7]
[362439381,1748293831566,-334.61538462,0.0002,4]
[362439382,1748293831575,-265.38461538,0.0002,7]
[362439383,1748293831585,-325.23364486,0.0002,4]
[362439384,1748293831594,-274.76635514,0.0002,7]
[362439385,1748293831603,-322.22222222,0.0002,4]
[362439386,1748293831613,-277.77777778,0.0002,7]
[362439387,1748293831622,-313.51351351,0.0002,4]
[362439388,1748293831631,-286.48648649,0.0002,7]
[362439389,1748293831640,-310.71428571,0.0002,4]
[362439390,1748293831649,-236.02045549,0.0002,7]
[362439391,1748293831658,-236.86041256,0.00029047,2]
[362439392,1748293831667,-180.04,0.00029047,2]
[362439393,1748293831677,-2123.70263975,0.0002937,2]
[362439394,1748293831686,-252.54032278,0.00029535,2]
[362439395,1748293831697,-69.39967722,0.00029535,2]
[362439396,1748293831707,-346.68948623,0.00029818,2]
[362439397,1748293831718,-153.31051377,0.00029818,2]
[362439398,1748293831731,-208.72885458,0.000299,21]
[362439399,1748293831740,-466.0,0.00029907,2]
[362439400,1748293831750,-164.0,0.0003,14]
[362439401,1748293831759,-1033.91772187,0.00030173,3]
[362439402,1748293831769,-483.24290978,0.0003055,7]
[362439404,1748293831784,-285.71773869,0.0003055,7]
[362439406,1748293831795,-10.34358673,0.0003055,7]
[362439408,1748293831806,-321.94,0.00030919,7]
[362439410,1748293831816,-321.94,0.00030919,7]
[362439411,1748293831825,-321.94,0.00030919,7]
[362439412,1748293831835,-321.94,0.00030919,7]
[362439414,1748293831844,-321.94,0.00030919,7]
[362439416,1748293831853,-321.94,0.00030919,7]
[362439418,1748293831862,-321.94,0.00030919,7]
[362439420,1748293831871,-151.77,0.00030995,2]
[362439421,1748293831880,-170.26,0.00031233,2]
[362439422,1748293831890,-159.67325001,0.00031251,2]
[362439423,1748293831899,-296.94394371,0.00031252,2]
[362439424,1748293831922,-308.511995,0.00031252,2]
[362439425,1748293831933,-394.54406129,0.00031252,2]
[362439426,1748293831942,-250.0,0.00031263,2]
[362439427,1748293831951,-207.4,0.00031293,2]
[362439428,1748293831960,-389.39,0.0003131,2]
[362439429,1748293831969,-866.70649345,0.00031312,2]
[362439430,1748293831980,-971.7483977,0.00031312,2]
[362439431,1748293832002,-288.90510885,0.00031312,2]
[362439432,1748293832011,-36.95366872,0.00031478,2]